bitfinex/quotes_BTCUSD_20251012
["timestamp","ask_amount","ask_price","bid_price","bid_amount"]
[1760313041614,0.54450171,115240.0,115230.0,0.0770162]
[1760313044140,0.56188171,115240.0,115230.0,0.0770162]
[1760313044345,0.54450171,115240.0,115230.0,0.0770162]
[1760313044558,0.54450171,115240.0,115230.0,0.3469162]
[1760313045336,0.54450171,115240.0,115230.0,0.0770162]
[1760313046509,0.54450171,115240.0,115230.0,0.1050062]
[1760313046706,0.54450171,115240.0,115230.0,0.0770162]
[1760313047505,0.63322105,115240.0,115230.0,0.0770162]
[1760313051443,0.63322105,115240.0,115230.0,0.1062162]
[1760313051660,0.54450171,115240.0,115230.0,0.27978211]
[1760313051867,0.54450171,115240.0,115230.0,0.0770162]
[1760313053158,0.52485171,115240.0,115230.0,0.1062162]
[1760313053472,0.54288171,115240.0,115230.0,0.1062162]
[1760313053703,0.54288171,115240.0,115230.0,0.0568962]
[1760313054101,0.57142301,115240.0,115230.0,0.0430662]
[1760313056129,0.54288171,115240.0,115230.0,0.0769862]
[1760313057840,0.54288171,115240.0,115230.0,0.0430662]
[1760313058176,0.54288171,115240.0,115230.0,0.0624162]
[1760313058388,0.54288171,115240.0,115230.0,0.23598211]
[1760313058594,0.54288171,115240.0,115230.0,0.0624162]
[1760313059392,0.54288171,115240.0,115230.0,0.0430662]
[1760313059612,0.54288171,115240.0,115230.0,0.0624162]
[1760313060645,0.54288171,115240.0,115230.0,0.0430662]
[1760313060860,0.5784896,115240.0,115230.0,0.0430662]
[1760313060984,0.5672196,115240.0,115230.0,0.0430662]
[1760313061657,0.54288171,115240.0,115230.0,0.0624162]
[1760313062349,0.52485171,115240.0,115230.0,0.1061862]
[1760313062514,0.54288171,115240.0,115230.0,0.0769862]
[1760313062941,0.52485171,115240.0,115230.0,0.1061862]
[1760313063117,0.52485171,115240.0,115230.0,0.27975211]
[1760313063355,0.54288171,115240.0,115230.0,0.0769862]
[1760313063881,0.54188171,115240.0,115230.0,0.0769862]
[1760313064018,0.54288171,115240.0,115230.0,0.0769862]
[1760313064605,0.54188171,115240.0,115230.0,0.0769862]
[1760313065886,0.54288171,115240.0,115230.0,0.0769862]
[1760313066297,0.52485171,115240.0,115230.0,0.0769862]
[1760313066459,0.54288171,115240.0,115230.0,0.1061862]
[1760313067493,0.54288171,115240.0,115230.0,0.0769862]
[1760313067646,0.54288171,115240.0,115230.0,0.1061862]
[1760313067996,0.52485171,115240.0,115230.0,0.1061862]
[1760313068321,0.54288171,115240.0,115230.0,0.3468862]
[1760313069038,0.54288171,115240.0,115230.0,0.3129662]
[1760313069577,5.64287105,115240.0,115230.0,0.3129662]
[1760313070669,5.64187105,115240.0,115230.0,0.3129662]
[1760313070927,5.64287105,115240.0,115230.0,0.3129662]
[1760313071952,5.55315171,115240.0,115230.0,0.3129662]
[1760313072106,5.55415171,115240.0,115230.0,0.3129662]
[1760313072610,5.55315171,115240.0,115230.0,0.3129662]
[1760313073282,5.55515171,115240.0,115230.0,0.3129662]
[1760313074202,5.55515171,115240.0,115230.0,0.0430662]
[1760313074405,5.64387105,115240.0,115230.0,0.0430662]
[1760313076897,5.66997606,115240.0,115230.0,0.0430662]
[1760313077143,5.56998672,115240.0,115230.0,0.0430662]
[1760313077356,5.58025672,115240.0,115230.0,0.0430662]
[1760313078189,0.58025672,115240.0,115230.0,0.0430662]
[1760313078449,0.56998672,115240.0,115230.0,0.0430662]
[1760313078675,0.003,115240.0,115230.0,0.27808211]
[1760313078889,0.003,115240.0,115230.0,0.76666849]
[1760313079095,0.003,115240.0,115230.0,0.79276619]
[1760313079308,0.003,115240.0,115230.0,0.30417981]
[1760313079509,0.50462004,115250.0,115240.0,0.17355085]
[1760313079719,0.50462004,115250.0,115240.0,0.19262085]
[1760313079897,0.50462004,115250.0,115240.0,0.23472085]
[1760313081081,0.67815583,115250.0,115240.0,0.23472085]
[1760313081276,0.74284634,115250.0,115230.0,0.25706505]
[1760313081498,0.01418261,115240.0,115230.0,0.25872735]
[1760313081699,0.01418261,115240.0,115230.0,0.27779735]
[1760313082095,0.50562004,115250.0,115240.0,0.17355085]
[1760313082294,0.67815583,115250.0,115240.0,0.23472085]
[1760313082895,0.67815583,115250.0,115240.0,0.06117]
[1760313083328,0.67915583,115250.0,115240.0,0.06117]
[1760313083781,0.70451018,115250.0,115240.0,0.03341]
[1760313086221,0.70451018,115250.0,115240.0,0.06117]
[1760313086771,0.51454439,115250.0,115240.0,0.23472085]
[1760313087093,0.50562004,115250.0,115240.0,0.23472085]
[1760313087293,0.67915583,115250.0,115240.0,0.23472085]
[1760313087608,0.50562004,115250.0,115240.0,0.23472085]
[1760313090006,0.50562004,115250.0,115240.0,0.32425037]
[1760313090218,0.50108552,115250.0,115240.0,0.78451791]
[1760313091018,0.50008552,115250.0,115240.0,0.78451791]
[1760313091284,0.50108552,115250.0,115240.0,0.78451791]
[1760313091690,0.50008552,115250.0,115240.0,0.78451791]
[1760313092255,0.50008552,115250.0,115240.0,0.35034366]
[1760313099418,5.0,115300.0,115290.0,0.17347558]
[1760313099623,0.06926707,115300.0,115290.0,0.20703381]
[1760313099824,0.19217573,115300.0,115290.0,0.23479381]
[1760313099999,0.17799312,115300.0,115290.0,0.06131823]
[1760313100778,0.52099312,115300.0,115290.0,0.06131823]
[1760313100962,0.51999312,115300.0,115290.0,0.06131823]
[1760313101444,0.52299312,115300.0,115290.0,0.06131823]
[1760313101660,0.5314635,115300.0,115290.0,0.06131823]
[1760313102344,0.5314635,115300.0,115290.0,0.10299823]
[1760313104918,0.52299312,115300.0,115290.0,0.10299823]
[1760313105719,0.52199312,115300.0,115290.0,0.10299823]
[1760313106070,0.52299312,115300.0,115290.0,0.10299823]
[1760313106498,0.51799312,115300.0,115290.0,0.10299823]
[1760313106710,0.51999312,115300.0,115290.0,0.10299823]
[1760313106923,0.52099312,115300.0,115290.0,0.10299823]
[1760313107276,0.52299312,115300.0,115290.0,0.10299823]
[1760313107559,0.51799312,115300.0,115290.0,0.10299823]
[1760313109246,0.005,115300.0,115290.0,0.27647381]
[1760313109872,0.005,115300.0,115290.0,0.30255739]
[1760313113028,0.002,115300.0,115290.0,0.30255739]
[1760313113221,0.18210293,115320.0,115300.0,0.17344991]
[1760313113431,0.52195011,115330.0,115320.0,0.17343045]
[1760313113715,0.51341717,115330.0,115320.0,0.23557045]
[1760313113919,0.51341717,115330.0,115320.0,0.06214]
[1760313114653,0.51541717,115330.0,115320.0,0.06214]
[1760313115694,0.51641717,115330.0,115320.0,0.06214]
[1760313120165,0.53526717,115330.0,115320.0,0.03313]
[1760313120381,0.51641717,115330.0,115320.0,0.03313]
[1760313120523,0.51641717,115330.0,115320.0,0.06214]
[1760313121330,0.51541717,115330.0,115320.0,0.06214]
[1760313121514,0.51641717,115330.0,115320.0,0.06214]
[1760313121864,0.51441717,115330.0,115320.0,0.06214]
[1760313122088,0.51341717,115330.0,115320.0,0.06214]
[1760313122222,0.51541717,115330.0,115320.0,0.06214]
[1760313122790,0.51841717,115330.0,115320.0,0.06214]
[1760313122991,0.51441717,115330.0,115320.0,0.06214]
[1760313123327,0.51641717,115330.0,115320.0,0.06214]
[1760313124021,0.51541717,115330.0,115320.0,0.06214]
[1760313124209,0.51641717,115330.0,115320.0,0.06214]
[1760313124772,0.51541717,115330.0,115320.0,0.06214]
[1760313125116,0.51441717,115330.0,115320.0,0.06214]
[1760313125333,0.51641717,115330.0,115320.0,0.06214]
[1760313127917,0.53262971,115330.0,115320.0,0.06214]
[1760313128326,0.54073867,115330.0,115320.0,0.06214]
[1760313130771,0.54073867,115330.0,115320.0,0.33204]
[1760313131837,0.53262971,115330.0,115320.0,0.33204]
[1760313132243,0.54074486,115330.0,115320.0,0.33204]
[1760313133026,0.55959486,115330.0,115320.0,0.33204]
[1760313133213,0.54074486,115330.0,115320.0,0.33204]
[1760313134185,0.53262971,115330.0,115320.0,0.33204]
[1760313135229,0.51641717,115330.0,115320.0,0.33204]
[1760313137050,5.5688617,115330.0,115320.0,0.2699]
[1760313137258,6.03081045,115320.0,115310.0,0.04168]
[1760313137459,5.56597498,115320.0,115310.0,0.04168]
[1760313137665,5.55507498,115320.0,115310.0,0.06054]
[1760313137892,5.53071045,115320.0,115310.0,0.07481]
[1760313138288,5.54151045,115320.0,115310.0,0.04168]
[1760313138512,5.53071045,115320.0,115310.0,0.04168]
[1760313138987,5.54351045,115320.0,115310.0,0.04168]
[1760313139250,5.53271045,115320.0,115310.0,0.04168]
[1760313139454,5.53271045,115320.0,115310.0,0.07379]
[1760313139784,5.53271045,115320.0,115310.0,0.04168]
[1760313139980,5.53371045,115320.0,115310.0,0.04168]
[1760313140204,5.54451045,115320.0,115310.0,0.04168]
[1760313140416,5.57814723,115320.0,115310.0,0.04168]
[1760313140797,5.54996723,115320.0,115310.0,0.04168]
[1760313141198,5.53271045,115320.0,115310.0,0.04168]
[1760313141633,5.53371045,115320.0,115310.0,0.04168]
[1760313142387,0.53371045,115320.0,115310.0,0.04168]
[1760313143499,0.53271045,115320.0,115310.0,0.04168]
[1760313143905,0.54451045,115320.0,115310.0,0.04168]
[1760313144119,0.53371045,115320.0,115310.0,0.04168]
[1760313144300,0.54451045,115320.0,115310.0,0.04168]
[1760313144508,0.53371045,115320.0,115310.0,0.04168]
[1760313147161,0.53371045,115320.0,115310.0,0.05996]
[1760313147366,5.61818333,115320.0,115310.0,1e-08]
[1760313147568,1.46288681,115280.0,115250.0,0.12477707]
[1760313147766,1.46288681,115280.0,115250.0,0.11144187]
[1760313147767,5.52432073,115260.0,115250.0,0.11144187]
[1760313147968,5.61390722,115260.0,115250.0,0.11144187]
[1760313148188,5.61390722,115260.0,115250.0,0.0421748]
[1760313148369,5.63128722,115260.0,115250.0,0.0421748]
[1760313148981,5.51355085,115240.0,115230.0,0.0430662]
[1760313149177,5.51355085,115240.0,115230.0,0.04321457]
[1760313149178,5.52285171,115240.0,115230.0,0.04321457]
[1760313149383,5.55093171,115240.0,115230.0,0.04321457]
[1760313149576,0.55093171,115240.0,115230.0,0.04321457]
[1760313149812,5.58108361,115240.0,115230.0,0.04321457]
[1760313150005,5.66980295,115240.0,115230.0,0.04321457]
[1760313150432,5.67080295,115240.0,115230.0,0.04321457]
[1760313150574,5.67280295,115240.0,115230.0,0.04321457]
[1760313150774,5.67180295,115240.0,115230.0,0.04321457]
[1760313151173,0.34157759,115200.0,115190.0,0.0004]
[1760313151396,0.62231357,115200.0,115190.0,0.00048552]
[1760313151744,5.6735766,115200.0,115190.0,0.00048552]
[1760313152480,0.6735766,115200.0,115190.0,0.00048552]
[1760313152693,5.6735766,115200.0,115190.0,0.00048552]
[1760313152899,5.6745766,115200.0,115190.0,0.00048552]
[1760313153148,0.6735766,115200.0,115190.0,0.00048552]
[1760313153380,5.6755766,115200.0,115190.0,0.00048552]
[1760313153949,5.51362618,115190.0,115180.0,0.0004]
[1760313154115,0.51364125,115180.0,115170.0,0.0004]
[1760313154332,5.57596885,115180.0,115170.0,0.00054772]
[1760313154539,5.57809401,115180.0,115170.0,1e-08]
[1760313154747,0.17365633,115170.0,115160.0,0.01038563]
[1760313154951,0.52559451,115170.0,115160.0,0.05149471]
[1760313155153,0.52559451,115170.0,115160.0,0.04262471]
[1760313155350,0.54287451,115170.0,115160.0,0.04262471]
[1760313155530,0.59603713,115170.0,115160.0,0.01051471]
[1760313156164,0.59603713,115170.0,115160.0,0.02879471]
[1760313156372,0.59603713,115170.0,115160.0,0.04262471]
[1760313156534,0.54387451,115170.0,115160.0,0.04262471]
[1760313157960,0.52659451,115170.0,115160.0,0.04262471]
[1760313158141,0.54487451,115170.0,115160.0,0.04262471]
[1760313159070,0.342,115170.0,115160.0,0.24344612]
[1760313159322,0.17565633,115170.0,115160.0,0.06977471]
[1760313159888,0.24458609,115170.0,115160.0,0.06977471]
[1760313160589,0.26186609,115170.0,115160.0,0.04262471]
[1760313161224,0.27380427,115170.0,115160.0,0.02434471]
[1760313161365,0.27380427,115170.0,115160.0,0.04262471]
[1760313162358,0.25652427,115170.0,115160.0,0.04262471]
[1760313162568,0.25652427,115170.0,115160.0,0.24344612]
[1760313162741,0.25652427,115170.0,115160.0,0.04262471]
[1760313162742,0.27380427,115170.0,115160.0,0.04262471]
[1760313162944,0.25652427,115170.0,115160.0,0.21629612]
[1760313163144,0.25652427,115170.0,115160.0,0.24344612]
[1760313163727,0.002,115170.0,115160.0,0.24344612]
[1760313164770,0.51364235,115180.0,115160.0,0.24344612]
[1760313164929,0.51364235,115180.0,115170.0,0.04098]
[1760313164930,0.52539204,115180.0,115170.0,0.04098]
[1760313165122,0.52539204,115180.0,115170.0,0.05926]
[1760313165471,0.52539204,115180.0,115170.0,0.23291633]
[1760313166087,0.35174969,115180.0,115170.0,0.23291633]
[1760313166292,0.35274969,115180.0,115170.0,0.23291633]
[1760313166741,0.35374969,115180.0,115170.0,0.23291633]
[1760313166867,0.35374969,115180.0,115170.0,0.23265533]
[1760313167078,0.001,115180.0,115170.0,0.23265533]
[1760313167278,0.001,115180.0,115170.0,0.78543679]
[1760313167503,0.06926707,115210.0,115200.0,0.17361111]
[1760313167765,0.06926707,115210.0,115200.0,0.23413111]
[1760313167967,0.18776425,115220.0,115200.0,0.23413111]
[1760313168183,0.26893811,115230.0,115210.0,0.21539604]
[1760313168372,0.0045355,115230.0,115220.0,0.23410097]
[1760313168702,0.00468377,115230.0,115220.0,0.23410097]
[1760313168903,0.35886638,115230.0,115220.0,0.23410097]
[1760313169153,0.34468377,115230.0,115220.0,0.23410097]
[1760313169391,0.51924968,115230.0,115220.0,0.23410097]
[1760313169568,0.51824968,115230.0,115220.0,0.23410097]
[1760313169772,0.60560982,115230.0,115220.0,0.03277]
[1760313169955,0.51924968,115230.0,115220.0,0.06101]
[1760313170633,0.52024968,115230.0,115220.0,0.06101]
[1760313171248,0.51924968,115230.0,115220.0,0.06101]
[1760313171650,0.52024968,115230.0,115220.0,0.06101]
[1760313172328,0.52024968,115230.0,115220.0,0.23459097]
[1760313173187,0.00668377,115230.0,115220.0,0.23459097]
[1760313173385,0.00214827,115230.0,115220.0,0.23459097]
[1760313174114,0.00114827,115230.0,115220.0,0.23459097]
[1760313174320,0.00014827,115230.0,115220.0,0.23459097]
[1760313180412,0.17371418,115230.0,115220.0,0.06101]
[1760313180627,0.20844068,115230.0,115220.0,0.20635097]
[1760313180821,0.00014827,115230.0,115220.0,0.23459097]
[1760313181149,0.01433088,115230.0,115220.0,0.23459097]
[1760313181327,0.18789679,115230.0,115220.0,0.23459097]
[1760313181531,0.17371418,115230.0,115220.0,0.23459097]
[1760313181861,0.00014827,115230.0,115220.0,0.23459097]
[1760313183375,0.17371418,115230.0,115220.0,0.23459097]
[1760313184233,0.00014827,115230.0,115220.0,0.23459097]
[1760313184461,0.00014827,115230.0,115220.0,0.27627097]
[1760313186708,0.17371418,115230.0,115220.0,0.27627097]
[1760313186916,0.17371418,115230.0,115220.0,0.5459101]
[1760313190090,0.17371418,115230.0,115220.0,0.3712734]
[1760313190246,0.19189418,115230.0,115220.0,0.3430334]
[1760313190855,0.19189418,115230.0,115220.0,0.31158]
[1760313190856,0.2157716,115230.0,115220.0,0.31158]
[1760313191203,0.2015716,115230.0,115220.0,0.31158]
[1760313191371,0.2157716,115230.0,115220.0,0.31158]
[1760313191778,0.2015716,115230.0,115220.0,0.31158]
[1760313192027,0.2015716,115230.0,115220.0,0.34498]
[1760313192527,0.1833916,115230.0,115220.0,0.10332]
[1760313192726,0.00014827,115230.0,115220.0,0.2774601]
[1760313192957,0.00014827,115230.0,115220.0,0.27690097]
[1760313196081,0.00014827,115230.0,115220.0,0.54680097]
[1760313196217,0.00014827,115230.0,115220.0,0.63633049]
[1760313196417,0.00014827,115230.0,115220.0,0.36643049]
[1760313199076,1e-08,115230.0,115220.0,1.12911525]
[1760313199411,1e-08,115230.0,115220.0,1.32421523]
[1760313199726,1e-08,115230.0,115220.0,1.72421523]
[1760313200468,1e-08,115230.0,115220.0,1.72521523]
[1760313200862,1e-08,115230.0,115220.0,1.72621523]
[1760313201269,1e-08,115230.0,115220.0,1.72521523]
[1760313201837,1e-08,115230.0,115220.0,1.72621523]
[1760313202056,1e-08,115230.0,115220.0,1.72521523]
[1760313202255,1e-08,115230.0,115220.0,1.72421523]
[1760313202394,1e-08,115230.0,115220.0,1.16358238]
[1760313202592,1e-08,115230.0,115220.0,1.72521523]
[1760313202997,1e-08,115230.0,115220.0,1.72621523]
[1760313203206,1e-08,115230.0,115220.0,1.72521523]
[1760313203439,1e-08,115230.0,115220.0,1.72621523]
[1760313204036,1e-08,115230.0,115220.0,1.26358237]
[1760313204241,1e-08,115230.0,115220.0,1.72621523]
[1760313205121,0.06926707,115270.0,115260.0,0.17352073]
[1760313205322,0.06976156,115270.0,115260.0,0.23546073]
[1760313205712,0.00049449,115270.0,115260.0,0.23546073]
[1760313206972,0.00049449,115270.0,115260.0,0.32499025]
[1760313207277,0.00249449,115270.0,115260.0,0.32499025]
[1760313208317,0.00149449,115270.0,115260.0,0.32499025]
[1760313208565,0.00049449,115270.0,115260.0,0.32499025]
[1760313209751,0.00049449,115270.0,115260.0,1.55777501]
[1760313209955,0.00049449,115270.0,115260.0,1.582775]
[1760313210192,0.00049449,115270.0,115260.0,1.68277499]
[1760313211474,0.00049449,115270.0,115260.0,1.68377499]
[1760313212513,0.00049449,115270.0,115260.0,1.68277499]
[1760313212723,0.00049449,115270.0,115260.0,1.68377499]
[1760313213438,0.00049449,115270.0,115260.0,1.68477499]
[1760313213641,0.00049449,115270.0,115260.0,1.86113468]
[1760313213931,0.00049449,115270.0,115260.0,1.22214213]
[1760313214712,0.00049449,115270.0,115260.0,1.86113468]
[1760313218811,1e-08,115270.0,115260.0,1.86113468]
[1760313221549,0.06426708,115310.0,115300.0,0.17346053]
[1760313221749,0.23786091,115310.0,115300.0,0.18718053]
[1760313221902,0.00014834,115310.0,115300.0,0.23540053]
[1760313222755,0.00114834,115310.0,115300.0,0.23540053]
[1760313222957,0.00214834,115310.0,115300.0,0.23540053]
[1760313223474,0.17346053,115300.0,115290.0,0.01372]
[1760313223702,0.20541053,115300.0,115290.0,0.03286]
[1760313224211,0.20541053,115300.0,115290.0,0.07454]
[1760313224352,0.17346053,115300.0,115290.0,0.27616558]
[1760313224776,0.17346053,115300.0,115290.0,0.10269]
[1760313225203,0.17346053,115300.0,115290.0,0.27616558]
[1760313226767,0.17446053,115300.0,115290.0,0.27616558]
[1760313227522,0.17546053,115300.0,115290.0,0.27616558]
[1760313228684,0.17546053,115300.0,115290.0,0.54606558]
[1760313233436,0.17546053,115300.0,115290.0,0.37259]
[1760313233642,0.17546053,115300.0,115290.0,0.10269]
[1760313234157,0.19438053,115300.0,115290.0,0.07454]
[1760313235078,0.17546053,115300.0,115290.0,0.27518558]
[1760313235484,0.002,115300.0,115290.0,0.27518558]
[1760313235682,0.01618261,115300.0,115290.0,0.27518558]
[1760313236015,0.18964314,115300.0,115290.0,0.27518558]
[1760313236173,0.17546053,115300.0,115290.0,0.27518558]
[1760313237723,0.002,115300.0,115290.0,0.27518558]
[1760313237885,0.18964314,115300.0,115290.0,0.27518558]
[1760313238083,0.17546053,115300.0,115290.0,0.27518558]
[1760313238319,0.002,115300.0,115290.0,0.27518558]
[1760313238458,0.18964314,115300.0,115290.0,0.27518558]
[1760313238658,0.17546053,115300.0,115290.0,0.27518558]
[1760313239060,0.002,115300.0,115290.0,0.27518558]
[1760313239503,0.17546053,115300.0,115290.0,0.27518558]
[1760313240639,0.19438053,115300.0,115290.0,0.07454]
[1760313240841,0.20670053,115300.0,115290.0,0.04168]
[1760313241298,0.19438053,115300.0,115290.0,0.06047]
[1760313241431,0.19438053,115300.0,115290.0,0.07361]
[1760313243750,0.17546053,115300.0,115290.0,0.27425558]
[1760313244584,0.002,115300.0,115290.0,0.27425558]
[1760313244898,0.18964314,115300.0,115290.0,0.10078]
[1760313245032,0.17546053,115300.0,115290.0,0.10078]
[1760313245236,0.19438053,115300.0,115290.0,0.07361]
[1760313246323,0.19438053,115300.0,115290.0,0.04168]
[1760313246768,0.53438053,115300.0,115290.0,0.04168]
[1760313247199,0.53438053,115300.0,115290.0,0.06047]
[1760313247417,0.53438053,115300.0,115290.0,0.07361]
[1760313247858,0.53238053,115300.0,115290.0,0.07361]
[1760313248311,0.53338053,115300.0,115290.0,0.07361]
[1760313248753,0.53238053,115300.0,115290.0,0.07361]
[1760313249380,0.53238053,115300.0,115290.0,0.34351]
[1760313249581,0.53438053,115300.0,115290.0,0.34351]
[1760313249842,0.51546053,115300.0,115290.0,0.37068]
[1760313253342,0.51446053,115300.0,115290.0,0.37068]
[1760313253557,0.51546053,115300.0,115290.0,0.37068]
[1760313254606,0.51446053,115300.0,115290.0,0.37068]
[1760313257790,0.51446053,115300.0,115290.0,0.54415558]
[1760313257791,0.001,115300.0,115290.0,0.54415558]
[1760313258104,0.001,115300.0,115290.0,0.27425558]
[1760313258903,0.00014834,115310.0,115300.0,0.17346053]
[1760313259239,0.00014834,115310.0,115300.0,0.21386053]
[1760313259443,0.00014834,115310.0,115300.0,0.23230053]
[1760313259591,0.00014834,115310.0,115300.0,0.32183005]
[1760313259800,0.00014834,115310.0,115300.0,0.7556698]
[1760313261333,0.00014834,115310.0,115300.0,0.32183005]
[1760313263636,0.00014834,115310.0,115300.0,0.72183005]
[1760313263838,0.00014834,115310.0,115300.0,1.1556698]
[1760313267624,0.00014834,115310.0,115300.0,0.72183005]
[1760313268538,0.00014834,115310.0,115300.0,0.32183005]
[1760313269548,0.00014834,115310.0,115300.0,0.7556698]
[1760313270001,0.00014834,115310.0,115300.0,0.7858217]
[1760313273131,0.00014834,115310.0,115300.0,1.1858217]
[1760313273784,0.00014834,115310.0,115300.0,1.5258217]
[1760313274250,0.00014834,115310.0,115300.0,1.09198195]
[1760313274480,0.00014834,115310.0,115300.0,1.5258217]
[1760313274685,0.00014834,115310.0,115300.0,1.09198195]
[1760313274889,0.00014834,115310.0,115300.0,0.69198195]
[1760313275465,0.00014834,115310.0,115300.0,0.66183005]
[1760313275667,0.00014834,115310.0,115300.0,1.14961987]
[1760313275868,0.00014834,115310.0,115300.0,0.66183005]
[1760313276090,0.00014834,115310.0,115300.0,1.14961987]
[1760313279051,0.17359383,115310.0,115300.0,0.14836952]
[1760313279283,0.00014834,115310.0,115300.0,0.23230053]
[1760313280655,0.17359383,115310.0,115300.0,0.23230053]
[1760313281290,0.17359383,115310.0,115300.0,0.05884]
[1760313281489,0.17359383,115310.0,115290.0,0.08538]
[1760313281490,0.17346053,115300.0,115290.0,0.0437]
[1760313281722,0.17346053,115300.0,115290.0,0.27725558]
[1760313281921,0.17346053,115300.0,115290.0,0.30363558]
[1760313283228,0.17346053,115300.0,115290.0,0.13016]
[1760313283570,0.17459383,115310.0,115290.0,0.30363558]
[1760313283774,0.17359383,115310.0,115300.0,0.0404]
[1760313284555,0.17359383,115310.0,115300.0,0.05884]
[1760313285229,0.17459383,115310.0,115300.0,0.05884]
[1760313286007,0.19127383,115310.0,115300.0,0.03246]
[1760313286211,0.17559383,115310.0,115300.0,0.03246]
[1760313286444,0.17559383,115310.0,115300.0,0.05884]
[1760313286873,0.17459383,115310.0,115300.0,0.05884]
[1760313288928,0.17459383,115310.0,115300.0,0.23230053]
[1760313289418,0.17459383,115310.0,115300.0,0.80961987]
[1760313289419,0.00114834,115310.0,115300.0,0.80961987]
[1760313290536,0.00014834,115310.0,115300.0,0.80961987]
[1760313295016,0.00014834,115310.0,115300.0,0.32183005]
[1760313295193,0.00014834,115310.0,115300.0,0.80961987]
[1760313295544,0.00014834,115310.0,115300.0,0.32183005]
[1760313297245,0.00014834,115310.0,115300.0,0.80961987]
[1760313297448,0.17359383,115310.0,115300.0,0.05884]
[1760313297700,0.17359383,115310.0,115300.0,0.23230053]
[1760313297876,0.17359383,115310.0,115300.0,0.05884]
[1760313298452,0.17359383,115310.0,115300.0,0.23230053]
[1760313299475,0.00014834,115310.0,115300.0,0.23230053]
[1760313301154,0.17359383,115310.0,115300.0,0.23230053]
[1760313302729,0.17359383,115310.0,115300.0,0.50220053]
[1760313304554,0.17359383,115310.0,115300.0,0.32874]
[1760313304830,0.20062383,115310.0,115300.0,0.2699]
[1760313305057,0.58947053,115310.0,115300.0,0.2699]
[1760313305238,0.55102383,115310.0,115300.0,0.2699]
[1760313306631,0.55302383,115310.0,115300.0,0.2699]
[1760313306836,0.54262383,115310.0,115300.0,0.2699]
[1760313307688,0.00214834,115310.0,115300.0,0.32732]
[1760313307889,0.00214834,115310.0,115300.0,0.23088053]
[1760313308761,0.00014834,115310.0,115300.0,0.23088053]
[1760313325491,0.00014834,115310.0,115300.0,0.27252053]
[1760313328552,0.17359383,115310.0,115300.0,0.09906]
[1760313328769,5.57299627,115310.0,115300.0,0.04164]
[1760313330046,5.53829383,115310.0,115300.0,0.04164]
[1760313330464,0.53929383,115310.0,115300.0,0.04164]
[1760313331091,0.54029383,115310.0,115300.0,0.04164]
[1760313336234,0.53079383,115310.0,115300.0,0.059]
[1760313336435,0.53079383,115310.0,115300.0,0.09766]
[1760313336624,0.53079383,115310.0,115300.0,0.07181]
[1760313337004,0.52879383,115310.0,115300.0,0.07181]
[1760313337414,0.53079383,115310.0,115300.0,0.04164]
[1760313337578,0.52979383,115310.0,115300.0,0.04164]
[1760313337962,0.53079383,115310.0,115300.0,0.04164]
[1760313341257,0.53984383,115310.0,115300.0,0.04164]
[1760313341856,0.61378002,115310.0,115300.0,0.04164]
[1760313342305,0.53984383,115310.0,115300.0,0.04164]
[1760313342790,5.53884383,115310.0,115300.0,0.04164]
[1760313343217,5.55621383,115310.0,115300.0,0.04164]
[1760313343419,5.55721383,115310.0,115300.0,0.04164]
[1760313343636,0.55721383,115310.0,115300.0,0.04164]
[1760313343865,5.55621383,115310.0,115300.0,0.04164]
[1760313344065,5.53884383,115310.0,115300.0,0.04164]
[1760313344276,5.53984383,115310.0,115300.0,0.04164]
[1760313345858,5.54184383,115310.0,115300.0,0.04164]
[1760313346379,5.53784383,115310.0,115300.0,0.04164]
[1760313346906,5.55331076,115310.0,115300.0,0.04164]
[1760313349445,5.57940201,115310.0,115300.0,0.04164]
[1760313352499,5.60568105,115310.0,115300.0,0.04164]
[1760313354134,5.62305105,115310.0,115300.0,0.04164]
[1760313354388,5.57046791,115310.0,115300.0,0.04164]
[1760313360149,0.57046791,115310.0,115300.0,0.04164]
[1760313360348,0.17559383,115310.0,115300.0,0.09747]
[1760313360727,0.51559383,115310.0,115300.0,0.09747]
[1760313361391,0.00114834,115310.0,115300.0,0.27093053]
[1760313361595,0.18877644,115310.0,115300.0,0.27093053]
[1760313361927,0.17459383,115310.0,115300.0,0.27093053]
[1760313362312,0.17359383,115310.0,115300.0,0.27093053]
[1760313362721,0.17459383,115310.0,115300.0,0.27093053]
[1760313362921,0.17359383,115310.0,115300.0,0.27093053]
[1760313363902,0.00014834,115310.0,115300.0,0.27093053]
[1760313364102,0.01433095,115310.0,115300.0,0.27093053]
[1760313364912,0.00014834,115310.0,115300.0,0.27093053]
[1760313365371,0.00014834,115310.0,115300.0,0.70475094]
[1760313365489,0.00014834,115310.0,115300.0,0.79428046]
[1760313367783,0.00014834,115310.0,115300.0,1.19428046]
[1760313368789,0.00014834,115310.0,115300.0,1.56443236]
[1760313369021,0.00014834,115310.0,115300.0,1.13061195]
[1760313369194,0.00014834,115310.0,115300.0,1.56443236]
[1760313374096,0.00014834,115310.0,115300.0,2.28063236]
[1760313374246,0.00014834,115310.0,115300.0,2.30563235]
[1760313374962,0.06926707,115340.0,115330.0,0.17341541]
[1760313375160,0.06926707,115340.0,115330.0,0.75259534]
[1760313375363,0.00075577,115350.0,115340.0,0.17340038]
[1760313375570,0.000904,115350.0,115340.0,0.21230038]
[1760313375800,0.000904,115350.0,115340.0,0.22923038]
[1760313394547,0.000904,115350.0,115340.0,0.49913038]
[1760313394689,0.000904,115350.0,115340.0,0.22923038]
[1760313398313,0.000904,115350.0,115340.0,0.27087038]
[1760313400076,0.000904,115350.0,115340.0,0.8479067]
[1760313400286,0.000904,115350.0,115340.0,0.8780586]
[1760313400486,0.000904,115350.0,115340.0,0.3905518]
[1760313400744,0.000904,115350.0,115340.0,0.8780586]
[1760313401104,0.000904,115350.0,115340.0,0.8479067]
[1760313403791,0.000904,115350.0,115340.0,1.2479067]
[1760313407101,0.000904,115350.0,115340.0,0.7603999]
[1760313407314,0.000904,115350.0,115340.0,1.2479067]
[1760313409803,0.000904,115350.0,115340.0,1.2780586]
[1760313411290,0.000904,115350.0,115340.0,1.7655654]
[1760313411446,0.000904,115350.0,115340.0,2.1055654]
[1760313411639,0.000904,115350.0,115340.0,1.6180586]
[1760313412246,0.000904,115350.0,115340.0,1.1305518]
[1760313412446,0.000904,115350.0,115340.0,1.6180586]
[1760313414420,0.000904,115350.0,115340.0,1.6190586]
[1760313415473,0.19201934,115350.0,115340.0,0.04264]
[1760313415674,0.5929218,115350.0,115340.0,0.04264]
[1760313415881,0.61899906,115350.0,115340.0,0.04264]
[1760313417312,0.61899906,115350.0,115340.0,0.04164]
[1760313417512,0.58767762,115350.0,115340.0,0.04164]
[1760313418602,0.5580966,115350.0,115340.0,0.04164]
[1760313420840,0.36698126,115350.0,115340.0,0.26915038]
[1760313420966,0.340904,115350.0,115340.0,0.26915038]